[Event "Sardinia World Festival-A 2024"]
[Site "Orosei"]
[Date "2024.04.30"]
[Round "4.11"]
[White "Yankelevich, Lev"]
[Black "Gurel, Ediz"]
[Result "0-1"]
[ECO "E04"]
[WhiteElo "2413"]
[BlackElo "2578"]
[Annotator "TA"]
[PlyCount "97"]
[EventDate "2024.04.26"]
[EventType "swiss"]
[EventCountry "ITA"]
[SourceTitle "playchess.com"]
[Source "ChessBase"]
[SourceQuality "1"]
[TimeControl "40/5400+30:1800+30"]

{[%evp 13,97,20,29,14,19,15,18,14,18,12,20,17,14,10,43,43,52,10,18,14,29,34,20,8,4,0,10,0,0,-11,0,0,7,0,0,0,0,-45,-58,-61,-56,-68,-72,-83,-85,-125,-128,-121,-108,-185,-187,-255,-255,-374,-353,-536,-526,-520,-514,-498,-484,-587,-637,-494,-575,-562,-582,-546,-504,-842,-914,-922,-846,-1191,-1187,-1079,-1056,-963,-1007,-1891,-1889,-5611,-5100,-6207,-6079,-1216]} 1. Nf3 {[%emt 0:05:51]} d5 {[%emt 0:00:18]} 2. d4 {[%emt 0:00:06]} Nf6 {[%emt 0:00:14]} 3. c4 {[%emt 0:00:06]} e6 {[%emt 0:00:10]} 4. g3 {[%emt 0:01:02]} dxc4 {[%emt 0:00:19]} 5. Bg2 {[%emt 0:00:06]} Nc6 {[%emt 0:00:07]} 6. Qa4 {[%emt 0:02:56]} Bb4+ {[%emt 0:00:10]} 7. Bd2 {[%emt 0:00:03]} Nd5 {[%emt 0:00:06]} 8. Qc2 {[%emt 0:05:43]} b5 {[%emt 0:07:36]} 9. a4 {[%emt 0:00:32]} Bxd2+ {[%emt 0:07:15]} 10. Nbxd2 {[%emt 0:00:08][%cal Bb1d2,Bd2b3,Bb3c5][%mdl 32] The position is equal.} Ncb4 {[%emt 0:00:08]} 11. Qc1 {[%emt 0:00:09]} c6 {[%emt 0:00:19]} 12. b3 {[%emt 0:00:07]} cxb3 {[%emt 0:06:16]} 13. Nxb3 {[%emt 0:00:28]} bxa4 {[%emt 0:05:50]} 14. Rxa4 {[%emt 0:02:11]} O-O {[%emt 0:00:04]} 15. Nc5 {[%emt 0:18:39] aiming for e4.} a5 {[%emt 0:05:01]} 16. O-O {[%emt 0:00:12]} Ba6 {[%emt 0:02:13]} 17. Nxa6 {[%emt 0:01:12]} Rxa6 {[%emt 0:00:47]} 18. Ne5 {[%emt 0:02:05]} Qe7 {[%emt 0:08:14]} 19. e4 {[%emt 0:07:17]} Nf6 {[%emt 0:09:09]} 20. Qc5 {[%emt 0:10:31]} Qxc5 {[%emt 0:04:35]} 21. dxc5 {[%emt 0:00:04]} Rfa8 {[%emt 0:00:41]} 22. Rd1 {[%emt 0:04:32]} Kf8 {[%emt 0:02:27]} 23. f3 {[%emt 0:08:54]} Ke8 {[%emt 0:03:57]} 24. Rd6 {[%emt 0:05:05]} R6a7 {[%emt 0:07:01]} 25. Nxc6 {[%emt 0:02:27]} Nxc6 {[%emt 0:00:15]} 26. Rxc6 {[%emt 0:00:05]} Nd7 {[%emt 0:00:08] Dodges Rb6} 27. f4 {[%emt 0:02:57]} Kd8 {[%emt 0:08:32] Black converts the advantage convincingly.} 28. e5 {[%emt 0:05:55] Rd6 would now be deadly.} Rc8 $1 {[%emt 0:00:13]} 29. Rd4 {[%emt 0:02:37] [#]} Rxc6 $1 {[%emt 0:00:56]} 30. Bxc6 {[%emt 0:00:05] [#]} Ke7 {[%emt 0:01:25]} 31. Bxd7 {[%emt 0:10:15]} (31. Kf2 $17 {was called for.}) 31... Rxd7 $17 {[%emt 0:00:04][%mdl 4096] Endgame. KR-KR} 32. Rc4 {[%emt 0:01:11]} (32. Ra4 {was worth a try.} Ra7 33. Kf2) 32... Ra7 $19 {[%emt 0:02:12]} 33. Kf2 {[%emt 0:01:25]} (33. Ra4 $142) 33... a4 {[%emt 0:01:00] And now ...a3 would win.} 34. c6 {[%emt 0:00:25]} (34. Rc2 {might work better.}) 34... Kd8 {[%emt 0:00:05] Black is clearly winning.} 35. Ke3 {[%emt 0:00:51]} a3 {[%emt 0:00:17]} 36. Rc1 {[%emt 0:00:04]} a2 {[%emt 0:00:55]} 37. Ra1 {[%emt 0:00:33]} Kc7 {[%emt 0:00:09]} 38. Kd3 {[%emt 0:00:25]} Kxc6 {[%emt 0:00:36]} 39. Kc4 {[%emt 0:00:13]} h5 {[%emt 0:03:09]} 40. h3 {[%emt 0:01:48]} Ra3 {[%emt 0:02:57]} 41. Kb4 {[%emt 0:30:22]} (41. g4 $142 hxg4 (41... Rxh3 $2 42. Rxa2 hxg4 43. Rg2 $19) 42. hxg4) 41... Rxg3 {[%emt 0:30:45]} 42. Rxa2 {[%emt 0:00:12]} Rf3 {[%emt 0:00:07]} 43. Ra6+ {[%emt 0:01:13]} Kd5 {[%emt 0:00:29]} 44. Ra5+ {[%emt 0:00:20]} Kd4 {[%emt 0:00:50]} 45. Kb5 {[%emt 0:00:16]} Rxf4 {[%emt 0:00:05][%cal Og7g5] Hoping for ...g5!} 46. Kc6 {[%emt 0:00:04]} g5 {[%emt 0:00:51] Strongly threatening ...g4.} 47. Kd6 {[%emt 0:00:06]} g4 {[%emt 0:00:46] ...Ke3 is the strong threat.} 48. hxg4 {[%emt 0:00:05]} hxg4 {[%emt 0:00:03] ( -> ...Ke3)} 49. Ra3 {[%emt 0:03:07] Weighted Error Value: White=0.60/Black=0.14 (very precise) .  Mistake:       	White=5     	---        Inaccurate:     	White=3     	Black=1      OK:         	White=11    	Black=16     Best:        	---       	Black=4      Strong:       	---       	Black=2} 0-1

[Event "Sardinia World Festival-A 2024"]
[Site "Orosei"]
[Date "2024.04.30"]
[Round "4.12"]
[White "Lodici, Lorenzo"]
[Black "Haldorsen, Benjamin"]
[Result "1-0"]
[ECO "B62"]
[WhiteElo "2565"]
[BlackElo "2419"]
[Annotator "TA"]
[PlyCount "119"]
[EventDate "2024.04.26"]
[EventType "swiss"]
[EventCountry "ITA"]
[SourceTitle "playchess.com"]
[Source "ChessBase"]
[SourceQuality "1"]
[TimeControl "40/5400+30:1800+30"]

{[%evp 13,119,22,25,14,15,35,37,0,0,-10,-4,0,43,0,68,43,76,0,18,0,2,0,0,-52,-40,-48,-44,-106,-81,-50,0,8,-12,0,86,0,0,0,-8,-35,0,0,0,0,0,-87,-82,-41,-49,-441,12,20,43,27,37,15,14,45,980,0,636,585,561,0,0,0,0,0,0,0,599,671,634,589,647,0,0,0,690,687,847,728,1995,1414,1868,1579,828,304,536,395,464,307,1304,434,431,433,417,389,618,525,29959,29961,29966,29966,29965,29965,4627,4626]} 1. e4 {[%emt 0:00:10]} c5 {[%emt 0:04:21]} 2. Nf3 {[%emt 0:00:22]} d6 {[%emt 0:01:29]} 3. d4 {[%emt 0:00:14]} cxd4 {[%emt 0:00:12]} 4. Nxd4 {[%emt 0:00:04]} Nf6 {[%emt 0:00:33]} 5. Nc3 {[%emt 0:00:07]} Nc6 {[%emt 0:00:41]} 6. Bg5 {[%emt 0:06:19]} e6 {[%emt 0:01:28]} 7. Bb5 {[%emt 0:00:04]} Bd7 {[%emt 0:02:09]} 8. Qd3 {[%emt 0:00:42]} Be7 {[%emt 0:07:18]} 9. O-O-O {[%emt 0:00:37]} O-O {[%emt 0:04:57]} 10. Bxc6 {[%emt 0:12:38] White is slightly better.} (10. f4 $5) 10... bxc6 {[%emt 0:02:54]} 11. f4 {[%emt 0:00:24]} d5 {[%emt 0:04:23]} 12. e5 {[%emt 0:03:15]} Ne8 {[%emt 0:03:11]} 13. h4 {[%emt 0:00:06]} (13. Bxe7 $5 Qxe7 14. Rhe1 $17) 13... Nc7 {[%emt 0:07:18]} ({Black should try} 13... Rc8 $11) 14. Nb3 $1 $14 {[%emt 0:17:13] White has more active pieces.} Kh8 {[%emt 0:08:32] [#]} 15. Ne4 {[%emt 0:07:28]} f6 $11 {[%emt 0:11:21]} 16. exf6 {[%emt 0:01:10]} (16. Nec5 $5) 16... gxf6 {[%emt 0:00:15][%cal Od7e8]} 17. Bh6 {[%emt 0:02:09]} Rg8 {[%emt 0:01:52][%cal Og8g6] Repels Ng5} 18. Ng5 {[%emt 0:08:28]} fxg5 $15 {[%emt 0:03:31]} 19. hxg5 {[%emt 0:00:01][%cal Oh6f8]} Rg6 $1 {[%emt 0:03:54][%cal Oe6e5] And now ...e5! would win.} 20. Kb1 {[%emt 0:04:43]} (20. Bf8 $15 Bxf8 21. Qxg6) 20... Kg8 {[%emt 0:08:19]} 21. g4 {[%emt 0:03:07]} Bf8 {[%emt 0:03:10]} (21... e5 $15 22. f5 Rxh6 23. gxh6 e4) 22. f5 $1 $11 {[%emt 0:03:29]} Rxh6 {[%emt 0:01:50]} 23. gxh6 {[%emt 0:00:02]} Qf6 {[%emt 0:02:25]} (23... e5 $11) 24. Nd4 {[%emt 0:02:35]} (24. Qg3 $16 Ne8 25. Rdf1 exf5 26. gxf5+ Kh8 27. Rhg1) 24... exf5 $1 {[%emt 0:02:56]} (24... Bxh6 $2 25. g5 (25. Qh3 exf5 26. g5 Qd6 $18) 25... Bxg5 (25... Qxg5 $2 26. Rdg1 $18) 26. fxe6 $18) 25. gxf5 {[%emt 0:01:20]} Kh8 {[%emt 0:00:22][%cal Oc6c5]} 26. Rdg1 {[%emt 0:01:26][%cal Od3g3,Bd1g1,Bg1g7,Bg7d7][%mdl 32]} Bc5 {[%emt 0:00:32]} 27. Rg7 {[%emt 0:01:18] The board is on fire.} Bxd4 {[%emt 0:02:26]} 28. Rxd7 {[%emt 0:00:02]} Rb8 {[%emt 0:09:10]} 29. Rxc7 {[%emt 0:17:51]} (29. Rf7 $1 $11 {keeps the balance.} Qe5 (29... Qxf7 $2 30. Qxd4+ Kg8 31. Rg1+ Kf8 32. Qh8+ Ke7 33. Qxb8 $18) (29... Rxb2+ $2 30. Kc1 $18) 30. c3 Bxc3 31. b3) 29... Rxb2+ $17 {[%emt 0:00:07]} 30. Kc1 {[%emt 0:00:02]} Rb8 {[%emt 0:00:29][%mdl 1024] Inhibits Rc8+. ...Qg5+ is the strong threat. Black has compensation.} 31. Re1 $2 {[%emt 0:02:27][%mdl 8192]} (31. c3 $15 Qg5+ 32. Kd1) 31... Bc3 $2 {[%emt 0:01:56]} (31... Be5 $1 $19 32. Rxh7+ (32. Rxa7 $2 Qg5+ 33. Re3 d4 $19) 32... Kxh7) 32. Re6 $11 {[%emt 0:03:00]} Qg5+ {[%emt 0:00:46]} 33. Qe3 {[%emt 0:00:01]} Bb2+ {[%emt 0:00:26]} 34. Kd1 {[%emt 0:01:37] White wants to mate with Re8+.} Qg4+ $1 {[%emt 0:00:13]} 35. Ke1 {[%emt 0:00:01]} Qh4+ $2 {[%emt 0:00:55][%mdl 8192]} (35... Rg8 $14 36. Rcxc6 (36. Rxa7 $2 Qh4+ 37. Kd1 Qh1+ 38. Qe1 Qf3+ 39. Re2 Qf4 $19) 36... Bd4) 36. Kf1 $2 {[%emt 0:00:02]} (36. Kd2 $18 {Threatening mate with Re8+.} Rg8 37. Rg7 (37. Rcxc6 Qh1 $18) (37. Rxa7 $2 Rg2+ 38. Kd1 Qg4+ 39. Ke1 Rg1+ $19) (37. Qxa7 $2 Qf4+ 38. Qe3 Rg2+ 39. Ke1 Qh4+ 40. Kd1 Qg4+ 41. Ke1 Rg1+ $19) (37. Rexc6 $2 Qh2+ 38. Ke1 Qh1+ 39. Ke2 Rg2+ $19) 37... Qd4+ 38. Qxd4 Bxd4 39. Rd7) 36... Qh1+ $2 {[%emt 0:00:39][%mdl 8192]} (36... Qc4+ $11 37. Qe2 (37. Ke1 $2 Bc3+ 38. Kf2 Bd4 $19) 37... Qf4+ 38. Qf2 Qxc7) 37. Ke2 $18 {[%emt 0:00:00]} (37. Qg1 Qh3+ 38. Ke2 Qxf5 39. Rcxc6 (39. Rexc6 $2 Re8+ $19) 39... Bc3 40. Rxc3 (40. Qxa7 $2 Qxc2+ 41. Kf3 Qf5+ 42. Kg3 Rg8+ $19) 40... Qxe6+ 41. Re3 (41. Qe3 Qg4+ 42. Kf2 Qh4+ 43. Qg3 Qd4+ 44. Ke2 Rg8 $18) 41... Qxh6 $11) 37... Qg2+ {[%emt 0:01:10]} 38. Ke1 $2 {[%emt 0:04:21]} ({White must play} 38. Qf2 $18 Qg4+ 39. Qf3 Qc4+ 40. Kf2 Qxc2+ 41. Kg3) 38... Qh1+ {[%emt 0:00:31]} 39. Kf2 {[%emt 0:00:25] Intending Re8+ and mate.} Qh2+ $1 {[%emt 0:00:28]} 40. Kf1 $2 {[%emt 0:00:23][%mdl 8192]} (40. Ke1 $11 Qh1+ 41. Ke2 Qg2+ (41... Qh2+ 42. Kd3 Qh5 43. Rxh7+ Kxh7 44. Qxa7+ Kh8 45. Qxb8+ Kh7 46. Qb7+ Kg8 47. Rg6+ Kf8 48. Qc8+ Kf7 49. Qe6+ Kf8 50. Rg8#) 42. Qf2 Qg4+ 43. Qf3 Qc4+ 44. Kf2 Qxc2+ 45. Kg3) 40... Qh1+ $1 {[%emt 0:00:41]} 41. Ke2 {[%emt 0:07:15][%cal Bf1e2,Be2f2,Bf2g3,Bg3h3][%mdl 32]} Qg2+ $1 {[%emt 0:05:25]} (41... Qh2+ 42. Kd3 Qh5 43. Rxh7+ (43. Rxa7 Qd1+ 44. Qd2 Qf3+ 45. Qe3 Qd1+ 46. Qd2 Qg4 $11) 43... Kxh7 44. Qxa7+ (44. Rxc6 Qd1+ 45. Qd2 Qf1+ 46. Ke3 d4+ 47. Ke4 Qh1+ 48. Kf4 Qxc6 49. Qe1 Bc1+ 50. Qxc1 Qxh6+ 51. Ke5 Qxc1 52. f6 Qe3+ 53. Kd6 d3 54. Kd7 d2 55. Kc7 d1=Q 56. Kxb8 Qd8+ 57. Kb7 Qeb6#) 44... Kh8 45. Qxb8+ Kh7 46. Qb7+ (46. Qxb2 Qxf5+ 47. Kd2 Qf4+ 48. Ke1 Qg3+ 49. Kd1 Qg4+ 50. Kc1 Qg1+ 51. Kd2 Qg5+ 52. Re3 Qg2+ 53. Re2 Qg5+ 54. Kd1 Kg8 $18) 46... Kg8 47. Rg6+ (47. Qxb2 Qf3+ 48. Re3 Qd1+ 49. Kc3 d4+ 50. Kb3 Kh7 $18) (47. h7+ Kh8 48. Qxb2+ Kxh7 49. Re7+ Qf7 50. Rxf7+ Kh6 51. Qf6+ Kh5 52. Qg6+ Kh4 53. Rh7#) 47... Kf8 48. Qc8+ (48. Qxb2 Qxf5+ 49. Kd4 Qf2+ 50. Ke5 Qe3+ 51. Kd6 Qe7+ 52. Kxc6 Qe8+ 53. Kxd5 Qxg6 $18) 48... Kf7 49. Qe6+ Kf8 50. Rg8#) 42. Qf2 {[%emt 0:00:46]} Qg4+ {[%emt 0:01:34]} 43. Qf3 {[%emt 0:02:31]} Qc4+ {[%emt 0:00:26]} 44. Qd3 $2 {[%emt 0:02:08]} ({White has to play} 44. Kf2 $1 $18) 44... Qg4+ $1 $11 {[%emt 0:00:35]} 45. Qf3 $2 {[%emt 0:00:13][%mdl 8192]} (45. Kd2 $11 Qg2+ (45... Qf4+ $2 46. Qe3 $18) 46. Qe2 Qg5+ 47. Kd3 (47. Qe3 Qg2+ 48. Qe2 Qg5+ 49. Qe3 Qg2+ 50. Kd1 Qf1+ 51. Qe1 Qf3+ 52. Qe2 Qh1+ 53. Qe1 Qf3+ 54. Qe2 Qh1+ 55. Qe1 Qf3+ $11) 47... Qxf5+ (47... Qg3+ $2 48. Qe3 $18) 48. Kd2) 45... Qc4+ $18 {[%emt 0:00:27] [#] White stays focused until the end.} 46. Kf2 $1 {[%emt 0:00:23]} Qxc2+ {[%emt 0:09:18]} 47. Kg3 {[%emt 0:01:38][%cal Oe6e7]} Rg8+ {[%emt 0:02:18]} 48. Kh3 {[%emt 0:00:15][%cal Oe6e7] White threatens Ree7! and mate.} Qd2 {[%emt 0:00:49]} 49. Rcxc6 {[%emt 0:01:46] Re2 would kill now.} (49. Rxa7 $2 Be5 $19) 49... Qg5 {[%emt 0:06:08] [#]} 50. Rc3 $2 {[%emt 0:03:21]} a5 $2 {[%emt 0:04:56] [#]} (50... Rf8 {was necessary.} 51. Rcc6 Ba1) 51. a3 $1 {[%emt 0:04:40][%cal Ba2a3,Ba3a4][%mdl 32]} Ba1 {[%emt 0:00:02]} (51... d4 52. Rc2) 52. a4 {[%emt 0:05:59]} Bb2 $2 {[%emt 0:01:34]} (52... Rf8 53. Rce3 Bf6) 53. Rce3 {[%emt 0:02:18]} (53. Rcc6 $142 {[%cal Oe6e2] Black must now prevent Re2!} Rf8 54. Qg4 (54. Qxd5 $2 Qh5+ 55. Kg2 Rg8+ 56. Kf1 Qh2 $19)) 53... Bd4 {[%emt 0:02:58]} 54. Re2 {[%emt 0:01:17][%cal Oe2g2] Hoping for Rg2!} Qc1 {[%emt 0:00:23]} 55. Rd6 {[%emt 0:01:11][%cal Od6e6] Strongly threatening Rde6!} (55. Qxd5 Qf1+) 55... Ba1 {[%emt 0:00:26]} (55... Ba7 $142 56. Re7 (56. Rxd5 $2 Qxh6+) (56. Qxd5 Qf1+ 57. Rg2 Qh1+ 58. Rh2 Qf1+ 59. Rg2 Qh1+ 60. Rh2 Qf1+ 61. Rg2 $11) 56... Bb8) 56. Re7 {[%emt 0:01:43][%cal Od6e6]} (56. Rxd5 $2 {leads to mate.} Qxh6+) (56. Qxd5 $2 {is the wrong capture.} Bf6 $19) 56... Bb2 {[%emt 0:00:42]} 57. Rde6 {[%emt 0:00:31]} (57. Qxd5 $2 {gets mated.} Qf1+ 58. Kh4 Qf2+ 59. Kh5 Qh2#) 57... Qg5 {[%emt 0:00:30]} 58. Re8 $1 {[%emt 0:00:32]} (58. Qxd5 $2 Qh5#) 58... Bf6 {[%emt 0:00:35]} 59. Rxg8+ {[%emt 0:00:05]} (59. Qxd5 $2 Qxh6#) 59... Kxg8 {[%emt 0:00:29]} 60. Qg4 {[%emt 0:00:04] Weighted Error Value: White=0.90/Black=0.45.  Loses game:     	White=1     	Black=2      Missed win:     	White=1     	Black=1      Mistake:       	White=7     	Black=5      Inaccurate:     	White=4     	Black=4      OK:         	White=9     	Black=8      Best:        	White=6     	Black=9      Strong:       	White=3     	Black=7} 1-0

[Event "Sardinia World Festival-A 2024"]
[Site "Orosei"]
[Date "2024.04.30"]
[Round "4.13"]
[White "Krishnan, Ritvik"]
[Black "Erdogmus, Yagiz Kaan"]
[Result "0-1"]
[ECO "B90"]
[WhiteElo "2277"]
[BlackElo "2540"]
[Annotator "TA"]
[PlyCount "74"]
[EventDate "2024.04.26"]
[EventType "swiss"]
[EventCountry "ITA"]
[SourceTitle "playchess.com"]
[Source "ChessBase"]
[SourceQuality "1"]
[TimeControl "40/5400+30:1800+30"]

{[%evp 13,74,16,22,7,22,0,0,0,0,0,4,-73,0,0,0,0,0,0,0,0,0,0,0,0,0,-33,-19,-115,-131,-130,-128,-362,-321,-336,-293,-295,-230,-247,-242,-242,-231,-290,-279,-507,-477,-435,-277,-835,-807,-834,-813,-777,-775,-756,0,-329,-237,-29979,-29978,-29987,-29987,-29987,-29987]} 1. e4 {[%emt 0:00:30]} c5 {[%emt 0:00:56]} 2. Nf3 {[%emt 0:00:19]} d6 {[%emt 0:00:14]} 3. d4 {[%emt 0:00:23]} cxd4 {[%emt 0:00:09]} 4. Nxd4 {[%emt 0:00:02]} Nf6 {[%emt 0:00:07]} 5. Nc3 {[%emt 0:00:03]} a6 {[%emt 0:00:03]} 6. Be3 {[%emt 0:00:05]} e5 {[%emt 0:00:41]} 7. Nb3 {[%emt 0:00:06]} Be7 {[%emt 0:00:18]} 8. h3 {[%emt 0:00:03]} Be6 {[%emt 0:00:08]} 9. Qf3 {[%emt 0:00:04]} O-O {[%emt 0:00:35]} 10. g4 {[%emt 0:00:03] The position is equal.} a5 {[%emt 0:00:28]} 11. a4 {[%emt 0:00:29]} Na6 {[%emt 0:01:20]} 12. Bb5 {[%emt 0:00:23]} (12. O-O-O $11 {keeps the balance.}) 12... Rc8 {[%emt 0:02:41]} (12... Nb4 $17 13. O-O-O d5 14. exd5 (14. g5 Nxe4 15. Nxe4 dxe4 $17) 14... Nfxd5) 13. O-O-O $11 {[%emt 1:34:30]} Rxc3 {[%emt 0:06:07]} 14. bxc3 {[%emt 0:00:00]} d5 {[%emt 0:01:06]} 15. exd5 {[%emt 0:00:00]} Bxd5 {[%emt 0:02:39]} 16. Rxd5 {[%emt 0:00:00]} Nxd5 {[%emt 0:01:45]} 17. Bd2 {[%emt 0:00:00]} Nc5 {[%emt 0:07:29]} 18. Nxc5 {[%emt 0:00:00]} Bxc5 {[%emt 0:00:55]} 19. c4 {[%emt 0:00:00]} e4 {[%emt 0:09:06]} 20. Qb3 {[%emt 0:00:00] [#]} (20. Qxe4 Ba3+ 21. Kb1 Qf6 $19) (20. Qf5 $1 $11 Ba3+ 21. Kb1) 20... Qf6 $1 $17 {[%emt 0:05:41] White is on the road to losing.} 21. Kb1 {[%emt 0:00:00] Repels Qa1+} (21. cxd5 $2 Qa1+ (21... Qxf2 $2 22. Rf1 $18) 22. Qb1 Ba3+ 23. Kd1 Qxb1+ $19) 21... Qxf2 {[%emt 0:04:30] Black has more active pieces.} 22. Bxa5 {[%emt 0:00:00]} (22. cxd5 $17 Qxd2 23. Qc4) 22... Nf4 {[%emt 0:02:48] And now ...e3 would win.} 23. Bb4 {[%emt 0:00:00]} Bxb4 {[%emt 0:19:03]} 24. Qxb4 {[%emt 0:00:00]} Qf3 {[%emt 0:01:46]} 25. Rc1 {[%emt 0:00:00]} e3 {[%emt 0:16:47][%cal Oe3e2]} (25... Qxh3 26. c5 Ne6 (26... Qxg4 27. Qxe4 Qg5 28. Rh1 $17) 27. Qxe4 Nxc5 28. Qb4 $17) 26. c5 {[%emt 0:00:00]} e2 {[%emt 0:05:25][%cal Of3e3] Dodges Rf1. White must now prevent ...Qe3!} (26... Nxh3 27. Re1) 27. Re1 {[%emt 0:00:00]} Qe3 {[%emt 0:03:13] Prevents Qd2.} (27... Nxh3 28. Bxe2 (28. Rxe2 Nf4 $11) 28... Qf6 29. Bc4 $16 (29. Qxb7 Qc3 $11)) 28. Bc4 $2 {[%emt 0:00:00]} (28. Kb2 {was worth a try.}) 28... Rd8 $19 {[%emt 0:04:16] Hoping for ...Rd1+.} 29. Ka2 {[%emt 0:02:05]} Rd1 {[%emt 0:02:54] ...Qc1 is the strong threat.} (29... Nxh3 $2 30. Rxe2 (30. Bxe2 $2 Re8 $17) 30... Qf3 31. Re7 $18) 30. Qxb7 $2 {[%emt 0:00:45]} (30. c6 Rxe1 (30... bxc6 31. Qb8+) (30... Qe5 $2 31. Qb2 $19) 31. Qxe1 (31. cxb7 $2 Ra1+ 32. Kxa1 e1=Q+ $19) 31... bxc6 (31... Qxh3 32. cxb7 h5 33. b8=Q+ Kh7 34. Qxf4 Qf1 35. Qexf1 exf1=B 36. Qxf1) 32. Kb1) 30... Qe8 $1 {[%emt 0:00:47]} (30... Rxe1 31. Qxf7+ Kh8 32. Qg8#) 31. Bb5 {[%emt 0:04:23]} Qe6+ {[%emt 0:00:11]} 32. Ka3 {[%emt 0:01:22]} Qe3+ {[%emt 0:00:49]} (32... Rxe1 33. Qb8+) 33. Ka2 {[%emt 0:00:03]} Qe6+ {[%emt 0:00:33]} (33... Rxe1 34. Qc8+) (33... g6 $142 34. Bxe2 Rxe1) 34. Ka3 {[%emt 0:00:00] Intending Qa8+ and mate.} g5 {[%emt 0:01:06]} (34... Rxe1 35. Qb8+) (34... Qe3+ 35. Ka2 g5 (35... Rxe1 36. Qc8+) (35... Qe6+ $2 36. Ka3 $19) 36. Bxe2 Qe6+ (36... Rxe1 $2 37. Bc4 $19) 37. Qb3 Rxe1 (37... Qxb3+ 38. cxb3 Rxe1 39. Bc4 $17) 38. Qxe6 Nxe6 39. Bb5 $19) 35. Qh1 $2 {[%emt 0:01:50] [#]} (35. Qa8+ $19 Kg7 36. Qf3 Rxe1 37. Qc3+ Kg8 38. Qxe1 Qe3+ (38... Nxh3 $2 {too greedy.} 39. Qxe2 Qf6 40. Bc4 $18) 39. Kb2 Qxc5 (39... Nxh3 $2 40. Qxe2 Qd4+ 41. Ka2 $18) 40. Bxe2) 35... Qe3+ {[%emt 0:00:12] Black mates.} 36. Kb2 {[%emt 0:00:28]} Qc1+ {[%emt 0:00:07]} (36... Qxh3 37. Qxh3 (37. Rxd1 exd1=R 38. Qxd1 Qh2 $18) 37... Nxh3 38. Rxe2 $18) 37. Kb3 {[%emt 0:00:23]} Qb1+ {[%emt 0:00:41] Weighted Error Value: White=0.55/Black=0.63.  Loses game:     	White=1     	---        Mistake:       	White=5     	Black=1      Inaccurate:     	White=1     	Black=1      OK:         	White=9     	Black=12     Best:        	White=2     	---        Strong:       	---       	Black=1} 0-1

[Event "Sardinia World Festival-A 2024"]
[Site "Orosei"]
[Date "2024.04.30"]
[Round "4.14"]
[White "Chyzy, Jakub"]
[Black "Shevchenko, Kirill"]
[Result "0-1"]
[ECO "B51"]
[WhiteElo "2314"]
[BlackElo "2675"]
[Annotator "TA"]
[PlyCount "74"]
[EventDate "2024.04.26"]
[EventType "swiss"]
[EventCountry "ITA"]
[SourceTitle "playchess.com"]
[Source "ChessBase"]
[SourceQuality "1"]
[TimeControl "40/5400+30:1800+30"]

{[%evp 9,74,0,17,14,12,0,0,3,0,-13,0,0,0,-4,0,6,13,0,0,7,0,0,0,0,0,0,0,4,10,0,0,0,0,0,0,-66,-62,-59,-62,-77,0,-8,0,-10,0,0,0,0,0,-54,-42,-45,-54,-49,-51,-54,-66,-551,-502,-685,-643,-726,-714,-902,-870,-5322,-1181]} 1. e4 {[%emt 0:00:06]} c5 {[%emt 0:00:51]} 2. Nf3 {[%emt 0:00:06]} d6 {[%emt 0:00:05]} 3. Bb5+ {[%emt 0:00:13]} Nc6 {[%emt 0:00:55]} 4. O-O {[%emt 0:04:27]} Bd7 {[%emt 0:00:18]} 5. c4 {[%emt 0:03:45]} e5 {[%emt 0:09:35]} 6. Nc3 {[%emt 0:02:15]} Nge7 {[%emt 0:00:19]} 7. a3 {[%emt 0:00:37]} Ng6 {[%emt 0:04:43]} 8. b4 {[%emt 0:07:16] The position is equal.} Be7 {[%emt 0:06:56]} 9. Bxc6 {[%emt 0:17:07]} Bxc6 {[%emt 0:03:54]} 10. d3 {[%emt 0:00:39]} O-O {[%emt 0:00:16]} 11. Be3 {[%emt 0:00:47]} f5 {[%emt 0:05:40]} 12. exf5 {[%emt 0:05:25]} Rxf5 {[%emt 0:00:10] Hoping for ...Bxf3.} 13. Nd2 {[%emt 0:00:15]} b6 {[%emt 0:06:49]} 14. Nde4 {[%emt 0:05:08]} Nf4 {[%emt 0:07:17]} 15. b5 {[%emt 0:05:13]} Bb7 {[%emt 0:00:22]} 16. a4 {[%emt 0:10:09]} d5 {[%emt 0:05:21]} 17. cxd5 {[%emt 0:01:05]} Nxd5 {[%emt 0:00:11]} 18. a5 {[%emt 0:00:30]} Rb8 {[%emt 0:13:24]} 19. axb6 {[%emt 0:06:29]} (19. Nxd5 {simplifies} Qxd5 20. Qe2 Rd8 21. Rfd1) 19... axb6 {[%emt 0:00:11]} 20. Qg4 {[%emt 0:04:54]} Bc8 {[%emt 0:04:05]} (20... Nxe3 21. fxe3 Rxf1+ 22. Rxf1 $14) 21. Nxd5 {[%emt 0:09:14]} Qxd5 {[%emt 0:00:17]} 22. Bh6 {[%emt 0:01:33]} (22. Qe2 $11) 22... Rf7 $1 $15 {[%emt 0:03:46]} 23. Qg3 {[%emt 0:00:50]} Bf5 {[%emt 0:02:26][%cal Ob8d8]} 24. Rfe1 {[%emt 0:03:11]} Kh8 {[%emt 0:04:40]} ({Black should play} 24... Rd8 $17 25. Bg5 Bxg5 (25... Qxd3 26. Qxe5 Qd4 27. Nd6 $15) 26. Nxg5 Re7) 25. Ng5 $11 {[%emt 0:08:17]} Bxg5 {[%emt 0:03:59]} 26. Bxg5 {[%emt 0:00:01]} Qxd3 {[%emt 0:03:27]} 27. Qxe5 {[%emt 0:00:12]} Rbf8 {[%emt 0:00:24]} 28. Be7 {[%emt 0:04:08]} Rc8 {[%emt 0:00:29][%cal Oh7h6]} ({But not} 28... Re8 $2 29. Bxc5 Rc8 30. Qe8+ $18 (30. Bxb6 Bd7 $16) (30. Bxb6 Bd7 $16)) 29. Ra7 {[%emt 0:00:27]} ({Better is} 29. Rad1 $11 Qxb5 30. Bd8) 29... h6 {[%emt 0:01:04][%cal Oc8e8]} 30. h3 {[%emt 0:00:30]} Qxb5 {[%emt 0:01:50]} 31. Re3 {[%emt 0:00:09]} Qc6 {[%emt 0:02:29]} 32. Rf3 {[%emt 0:00:58]} Qg6 {[%emt 0:01:03]} 33. g4 $2 {[%emt 0:00:30][%mdl 8192] [#] This costs White the game.} (33. Qa1 $15) 33... Bxg4 $1 $19 {[%emt 0:02:30][%mdl 512] Black is clearly winning.} 34. Rxf7 {[%emt 0:00:33]} (34. Rg3 Qb1+) 34... Be6+ {[%emt 0:00:39]} 35. Kh2 {[%emt 0:00:30][%cal Of7g7] White threatens Rxg7! and mate.} Qxf7 {[%emt 0:01:34]} 36. f4 {[%emt 0:00:08]} Re8 {[%emt 0:00:31]} 37. Qc7 {[%emt 0:00:51] [#]} Rxe7 $1 {[%emt 0:00:47] Weighted Error Value: White=0.57/Black=0.05 (flawless) .  Loses game:     	White=1     	---        Mistake:       	White=2     	Black=1      Inaccurate:     	White=1     	---        OK:         	White=11    	Black=13     Best:        	---       	Black=2      Strong:       	---       	Black=1      Brilliant:      	---       	Black=1} 0-1